fUSD/lending_fUSD_20260621
["ID","MTS","AMOUNT","RATE_DAILY","PERIOD"]
[425859165,1782007846000,-500.0,0.00029589,2]
[425859163,1782007846000,-775.5,0.00029589,2]
[425859177,1782007846000,-976.26,0.00029589,2]
[425859170,1782007846000,-500.0,0.00029589,2]
[425859173,1782007846000,-500.0,0.00029589,2]
[425859160,1782007846000,-500.0,0.00029589,2]
[425859156,1782007846000,-500.0,0.00029589,2]
[425859154,1782007846000,-783.96,0.00029589,2]
[425859328,1782007847000,-500.0,0.00029589,2]
[425859319,1782007847000,-534.29223937,0.00029589,2]
[425859317,1782007847000,-554.4734499,0.00029589,2]
[425859309,1782007847000,-802.83,0.00029589,2]
[425859311,1782007847000,-500.0,0.00029589,2]
[425859307,1782007847000,-500.0,0.00029589,2]
[425859298,1782007847000,-500.0,0.00029589,2]
[425859313,1782007847000,-500.0,0.00029589,2]
[425859305,1782007847000,-201.45285233,0.00029589,2]
[425859321,1782007847000,-500.0,0.00029589,2]
[425859315,1782007847000,-500.0,0.00029589,2]
[425859332,1782007847000,-500.0,0.00029589,2]
[425859361,1782007847000,-1135.88,0.00029589,2]
[425859330,1782007847000,-906.59,0.00029589,2]
[425859326,1782007847000,-500.0,0.00029589,2]
[425859336,1782007847000,-598.51,0.00029589,2]
[425859334,1782007847000,-500.0,0.00029589,2]
[425859338,1782007847000,-500.0,0.00029589,2]
[425859340,1782007847000,-515.27,0.00029589,2]
[425859347,1782007847000,-636.56319717,0.00029589,2]
[425859351,1782007847000,-500.0,0.00029589,2]
[425859345,1782007847000,-500.0,0.00029589,2]
[425859349,1782007847000,-500.0,0.00029589,2]
[425859303,1782007847000,-500.0,0.00029589,2]
[425859324,1782007847000,-500.0,0.00029589,2]
[425859301,1782007847000,-500.0,0.00029589,2]
[425859238,1782007847000,-527.38931713,0.00029589,2]
[425859294,1782007847000,-500.0,0.00029589,2]
[425859241,1782007847000,-559.57703472,0.00029589,2]
[425859243,1782007847000,-500.0,0.00029589,2]
[425859247,1782007847000,-500.0,0.00029589,2]
[425859250,1782007847000,-500.0,0.00029589,2]
[425859252,1782007847000,-500.0,0.00029589,2]
[425859254,1782007847000,-500.0,0.00029589,2]
[425859245,1782007847000,-500.0,0.00029589,2]
[425859256,1782007847000,-500.0,0.00029589,2]
[425859266,1782007847000,-500.0,0.00029589,2]
[425859264,1782007847000,-600.49,0.00029589,2]
[425859258,1782007847000,-500.0,0.00029589,2]
[425859260,1782007847000,-500.0,0.00029589,2]
[425859262,1782007847000,-203.49117736,0.00029589,2]
[425859281,1782007847000,-500.0,0.00029589,2]
[425859279,1782007847000,-500.0,0.00029589,2]
[425859272,1782007847000,-500.0,0.00029589,2]
[425859270,1782007847000,-502.33,0.00029589,2]
[425859277,1782007847000,-505.20204974,0.00029589,2]
[425859268,1782007847000,-500.0,0.00029589,2]
[425859283,1782007847000,-500.0,0.00029589,2]
[425859274,1782007847000,-500.0,0.00029589,2]
[425859288,1782007847000,-500.0,0.00029589,2]
[425859286,1782007847000,-581.14384726,0.00029589,2]
[425859290,1782007847000,-500.0,0.00029589,2]
[425859292,1782007847000,-500.0,0.00029589,2]
[425859296,1782007847000,-790.02,0.00029589,2]
[425859353,1782007847000,-500.0,0.00029589,2]
[425859343,1782007847000,-500.0,0.00029589,2]
[425859363,1782007847000,-725.63,0.00029589,2]
[425859425,1782007847000,-624.81,0.00029589,2]
[425859431,1782007847000,-500.0,0.00029589,2]
[425859422,1782007847000,-500.0,0.00029589,2]
[425859429,1782007847000,-500.0,0.00029589,2]
[425859433,1782007847000,-500.0,0.00029589,2]
[425859434,1782007847000,-500.0,0.00029589,2]
[425859427,1782007847000,-500.0,0.00029589,2]
[425859457,1782007847000,-500.0,0.00029589,2]
[425859444,1782007847000,-500.0,0.00029589,2]
[425859449,1782007847000,-858.08,0.00029589,2]
[425859459,1782007847000,-710.24,0.00029589,2]
[425859451,1782007847000,-500.0,0.00029589,2]
[425859455,1782007847000,-500.0,0.00029589,2]
[425859440,1782007847000,-500.0,0.00029589,2]
[425859453,1782007847000,-500.0,0.00029589,2]
[425859436,1782007847000,-500.0,0.00029589,2]
[425859439,1782007847000,-952.78,0.00029589,2]
[425859442,1782007847000,-675.58,0.00029589,2]
[425859462,1782007847000,-500.0,0.00029589,2]
[425859466,1782007847000,-1257.21,0.00029589,2]
[425859464,1782007847000,-265.54242308,0.00029589,2]
[425859470,1782007847000,-500.0,0.00029589,2]
[425859468,1782007847000,-500.0,0.00029589,2]
[425859473,1782007847000,-500.0,0.00029589,2]
[425859357,1782007847000,-500.0,0.00029589,2]
[425859418,1782007847000,-500.0,0.00029589,2]
[425859412,1782007847000,-500.0,0.00029589,2]
[425859447,1782007847000,-500.0,0.00029589,2]
[425859414,1782007847000,-500.0,0.00029589,2]
[425859355,1782007847000,-505.13546028,0.00029589,2]
[425859420,1782007847000,-500.0,0.00029589,2]
[425859359,1782007847000,-500.0,0.00029589,2]
[425859368,1782007847000,-500.0,0.00029589,2]
[425859370,1782007847000,-500.0,0.00029589,2]
[425859373,1782007847000,-500.0,0.00029589,2]
[425859375,1782007847000,-500.0,0.00029589,2]
[425859366,1782007847000,-500.0,0.00029589,2]
[425859377,1782007847000,-525.89743971,0.00029589,2]
[425859381,1782007847000,-500.0,0.00029589,2]
[425859383,1782007847000,-500.0,0.00029589,2]
[425859379,1782007847000,-500.0,0.00029589,2]
[425859387,1782007847000,-500.0,0.00029589,2]
[425859385,1782007847000,-500.0,0.00029589,2]
[425859399,1782007847000,-913.64,0.00029589,2]
[425859416,1782007847000,-556.27639011,0.00029589,2]
[425859389,1782007847000,-783.2,0.00029589,2]
[425859408,1782007847000,-500.0,0.00029589,2]
[425859401,1782007847000,-500.0,0.00029589,2]
[425859403,1782007847000,-565.13,0.00029589,2]
[425859409,1782007847000,-500.0,0.00029589,2]
[425859405,1782007847000,-500.0,0.00029589,2]
[425859393,1782007847000,-500.0,0.00029589,2]
[425859398,1782007847000,-1354.88,0.00029589,2]
[425859392,1782007847000,-500.0,0.00029589,2]
[425859396,1782007847000,-858.21,0.00029589,2]
[425859559,1782007848000,-508.02543993,0.00029589,2]
[425859532,1782007848000,-500.0,0.00029589,2]
[425859538,1782007848000,-500.0,0.00029589,2]
[425859545,1782007848000,-500.0,0.00029589,2]
[425859547,1782007848000,-500.0,0.00029589,2]
[425859551,1782007848000,-1342.05,0.00029589,2]
[425859555,1782007848000,-500.0,0.00029589,2]
[425859549,1782007848000,-500.0,0.00029589,2]
[425859553,1782007848000,-746.44,0.00029589,2]
[425859565,1782007848000,-500.0,0.00029589,2]
[425859557,1782007848000,-525.43638454,0.00029589,2]
[425859563,1782007848000,-630.55,0.00029589,2]
[425859580,1782007848000,-500.0,0.00029589,2]
[425859567,1782007848000,-500.0,0.00029589,2]
[425859571,1782007848000,-500.0,0.00029589,2]
[425859569,1782007848000,-500.0,0.00029589,2]
[425859573,1782007848000,-500.0,0.00029589,2]
[425859575,1782007848000,-500.0,0.00029589,2]
[425859578,1782007848000,-500.0,0.00029589,2]
[425859582,1782007848000,-500.0,0.00029589,2]
[425859590,1782007848000,-500.0,0.00029589,2]
[425859592,1782007848000,-500.0,0.00029589,2]
[425859586,1782007848000,-500.0,0.00029589,2]
[425859540,1782007848000,-558.16,0.00029589,2]
[425859561,1782007848000,-500.0,0.00029589,2]
[425859534,1782007848000,-500.0,0.00029589,2]
[425859478,1782007848000,-983.18,0.00029589,2]
[425859536,1782007848000,-700.38,0.00029589,2]
[425859589,1782007848000,-984.22,0.00029589,2]
[425859475,1782007848000,-500.0,0.00029589,2]
[425859494,1782007848000,-500.0,0.00029589,2]
[425859496,1782007848000,-500.0,0.00029589,2]
[425859489,1782007848000,-500.0,0.00029589,2]
[425859480,1782007848000,-500.0,0.00029589,2]
[425859491,1782007848000,-572.58979395,0.00029589,2]
[425859490,1782007848000,-500.0,0.00029589,2]
[425859492,1782007848000,-500.0,0.00029589,2]
[425859512,1782007848000,-1256.85,0.00029589,2]
[425859510,1782007848000,-500.0,0.00029589,2]
[425859499,1782007848000,-500.0,0.00029589,2]
[425859500,1782007848000,-500.0,0.00029589,2]
[425859502,1782007848000,-500.0,0.00029589,2]
[425859506,1782007848000,-500.0,0.00029589,2]
[425859508,1782007848000,-500.0,0.00029589,2]
[425859504,1782007848000,-899.5,0.00029589,2]
[425859518,1782007848000,-500.0,0.00029589,2]
[425859516,1782007848000,-500.0,0.00029589,2]
[425859514,1782007848000,-500.0,0.00029589,2]
[425859520,1782007848000,-500.0,0.00029589,2]
[425859523,1782007848000,-500.0,0.00029589,2]
[425859527,1782007848000,-500.0,0.00029589,2]
[425859525,1782007848000,-500.0,0.00029589,2]
[425859529,1782007848000,-500.0,0.00029589,2]
[425859542,1782007848000,-508.9153698,0.00029589,2]
[425859595,1782007848000,-671.1,0.00029589,2]
[425859584,1782007848000,-704.63,0.00029589,2]
[425859599,1782007848000,-500.0,0.00029589,2]
[425859657,1782007848000,-573.65,0.00029589,2]
[425859672,1782007848000,-500.0,0.00029589,2]
[425859675,1782007848000,-500.0,0.00029589,2]
[425859664,1782007848000,-699.97,0.00029589,2]
[425859660,1782007848000,-545.04,0.00029589,2]
[425859666,1782007848000,-613.44339528,0.00029589,2]
[425859668,1782007848000,-500.0,0.00029589,2]
[425859670,1782007848000,-500.0,0.00029589,2]
[425859695,1782007848000,-500.0,0.00029589,2]
[425859681,1782007848000,-500.0,0.00029589,2]
[425859688,1782007848000,-506.82,0.00029589,2]
[425859699,1782007848000,-500.0,0.00029589,2]
[425859697,1782007848000,-500.0,0.00029589,2]
[425859679,1782007848000,-500.0,0.00029589,2]
[425859690,1782007848000,-500.0,0.00029589,2]
[425859683,1782007848000,-603.85425582,0.00029589,2]
[425859677,1782007848000,-1139.72,0.00029589,2]
[425859686,1782007848000,-981.22,0.00029589,2]
[425859684,1782007848000,-500.0,0.00029589,2]
[425859703,1782007848000,-604.54,0.00029589,2]
[425859708,1782007848000,-500.0,0.00029589,2]
[425859701,1782007848000,-500.0,0.00029589,2]
[425859705,1782007848000,-500.0,0.00029589,2]
[425859710,1782007848000,-507.51764716,0.00029589,2]
[425859597,1782007848000,-500.0,0.00029589,2]
[425859653,1782007848000,-500.0,0.00029589,2]
[425859655,1782007848000,-500.0,0.00029589,2]
[425859692,1782007848000,-500.0,0.00029589,2]
[425859652,1782007848000,-500.0,0.00029589,2]
[425859601,1782007848000,-500.0,0.00029589,2]
[425859662,1782007848000,-762.41,0.00029589,2]
[425859609,1782007848000,-500.0,0.00029589,2]
[425859610,1782007848000,-500.0,0.00029589,2]
[425859614,1782007848000,-500.0,0.00029589,2]
[425859605,1782007848000,-865.91,0.00029589,2]
[425859603,1782007848000,-500.0,0.00029589,2]
[425859612,1782007848000,-500.0,0.00029589,2]
[425859607,1782007848000,-500.0,0.00029589,2]
[425859618,1782007848000,-800.0,0.00029589,11]
[425859622,1782007848000,-544.12,0.00029589,2]
[425859624,1782007848000,-500.0,0.00029589,2]
[425859620,1782007848000,-864.58957717,0.00029589,11]
[425859616,1782007848000,-500.0,0.00029589,2]
[425859626,1782007848000,-500.0,0.00029589,2]
[425859641,1782007848000,-720.09,0.00029589,2]
[425859649,1782007848000,-500.0,0.00029589,2]
[425859645,1782007848000,-667.12,0.00029589,2]
[425859643,1782007848000,-853.18,0.00029589,2]
[425859651,1782007848000,-500.0,0.00029589,2]
[425859637,1782007848000,-574.20572245,0.00029589,2]
[425859639,1782007848000,-500.0,0.00029589,2]
[425859634,1782007848000,-500.0,0.00029589,2]
[425859628,1782007848000,-500.0,0.00029589,2]
[425859632,1782007848000,-578.28,0.00029589,2]
[425859630,1782007848000,-500.0,0.00029589,2]
[425859647,1782007848000,-500.0,0.00029589,2]
[425859797,1782007849000,-707.8,0.00029589,2]
[425859810,1782007849000,-550.11,0.00029589,2]
[425859795,1782007849000,-1389.66,0.00029589,2]
[425859791,1782007849000,-500.0,0.00029589,2]
[425859793,1782007849000,-500.0,0.00029589,2]
[425859779,1782007849000,-500.0,0.00029589,2]
[425859775,1782007849000,-1501.94,0.00029589,2]
[425859777,1782007849000,-171.92441638,0.00029589,2]
[425859785,1782007849000,-500.0,0.00029589,2]
[425859787,1782007849000,-187.99936506,0.00029589,2]
[425859783,1782007849000,-500.0,0.00029589,2]
[425859789,1782007849000,-500.0,0.00029589,2]
[425859781,1782007849000,-500.0,0.00029589,2]
[425859807,1782007849000,-500.0,0.00029589,2]
[425859827,1782007849000,-500.0,0.00029589,2]
[425859814,1782007849000,-500.0,0.00029589,2]
[425859816,1782007849000,-500.0,0.00029589,2]
[425859818,1782007849000,-500.0,0.00029589,2]
[425859834,1782007849000,-679.56,0.00029589,2]
[425859819,1782007849000,-512.28386483,0.00029589,2]
[425859799,1782007849000,-500.0,0.00029589,2]
[425859805,1782007849000,-533.29,0.00029589,2]
[425859821,1782007849000,-500.0,0.00029589,2]
[425859801,1782007849000,-500.0,0.00029589,2]
[425859803,1782007849000,-1338.15,0.00029589,2]
[425859823,1782007849000,-500.0,0.00029589,2]
[425859825,1782007849000,-500.0,0.00029589,2]
[425859773,1782007849000,-732.03,0.00029589,2]
[425859812,1782007849000,-500.0,0.00029589,2]
[425859769,1782007849000,-523.29,0.00029589,2]
[425859720,1782007849000,-522.22788037,0.00029589,2]
[425859760,1782007849000,-835.91,0.00029589,2]
[425859718,1782007849000,-500.0,0.00029589,2]
[425859714,1782007849000,-500.0,0.00029589,2]
[425859712,1782007849000,-500.0,0.00029589,2]
[425859716,1782007849000,-500.0,0.00029589,2]
[425859722,1782007849000,-500.0,0.00029589,2]
[425859724,1782007849000,-500.0,0.00029589,2]
[425859726,1782007849000,-896.99,0.00029589,2]
[425859737,1782007849000,-500.0,0.00029589,2]
[425859739,1782007849000,-500.0,0.00029589,2]
[425859736,1782007849000,-1485.98,0.00029589,2]
[425859741,1782007849000,-500.0,0.00029589,2]
[425859738,1782007849000,-520.21784154,0.00029589,2]
[425859743,1782007849000,-500.28160273,0.00029589,2]
[425859740,1782007849000,-500.0,0.00029589,2]
[425859728,1782007849000,-500.0,0.00029589,2]
[425859730,1782007849000,-500.0,0.00029589,2]
[425859732,1782007849000,-500.0,0.00029589,2]
[425859745,1782007849000,-500.0,0.00029589,2]
[425859734,1782007849000,-635.72,0.00029589,2]
[425859747,1782007849000,-500.0,0.00029589,2]
[425859749,1782007849000,-500.0,0.00029589,2]
[425859759,1782007849000,-795.51,0.00029589,2]
[425859751,1782007849000,-927.62,0.00029589,2]
[425859755,1782007849000,-500.0,0.00029589,2]
[425859757,1782007849000,-645.11,0.00029589,2]
[425859753,1782007849000,-500.0,0.00029589,2]
[425859762,1782007849000,-500.0,0.00029589,2]
[425859767,1782007849000,-949.11,0.00029589,2]
[425859765,1782007849000,-544.69,0.00029589,2]
[425859771,1782007849000,-500.0,0.00029589,2]
[425859843,1782007849000,-616.83,0.00029589,2]
[425859863,1782007849000,-1737.3,0.00029589,2]
[425859831,1782007849000,-500.0,0.00029589,2]
[425859902,1782007849000,-500.0,0.00029589,2]
[425859914,1782007849000,-500.0,0.00029589,2]
[425859898,1782007849000,-500.0,0.00029589,2]
[425859916,1782007849000,-500.0,0.00029589,2]
[425859906,1782007849000,-500.0,0.00029589,2]
[425859904,1782007849000,-500.0,0.00029589,2]
[425859912,1782007849000,-500.0,0.00029589,2]
[425859910,1782007849000,-500.0,0.00029589,2]
[425859918,1782007849000,-500.0,0.00029589,2]
[425859908,1782007849000,-500.0,0.00029589,2]
[425859920,1782007849000,-500.0,0.00029589,2]
[425859922,1782007849000,-500.0,0.00029589,2]
[425859924,1782007849000,-500.0,0.00029589,2]
[425859900,1782007849000,-500.0,0.00029589,2]
[425859945,1782007849000,-714.94,0.00029589,2]
[425859935,1782007849000,-500.0,0.00029589,2]
[425859928,1782007849000,-500.0,0.00029589,2]
[425859932,1782007849000,-500.0,0.00029589,2]
[425859947,1782007849000,-500.0,0.00029589,2]
[425859937,1782007849000,-199.72291781,0.00029589,2]
[425859926,1782007849000,-500.0,0.00029589,2]
[425859934,1782007849000,-500.0,0.00029589,2]
[425859941,1782007849000,-539.03409088,0.00029589,2]
[425859943,1782007849000,-500.0,0.00029589,2]
[425859951,1782007849000,-735.05,0.00029589,2]
[425859953,1782007849000,-500.0,0.00029589,2]
[425859949,1782007849000,-803.39,0.00029589,2]
[425859829,1782007849000,-500.0,0.00029589,2]
[425859930,1782007849000,-190.35678785,0.00029589,2]
[425859885,1782007849000,-500.0,0.00029589,2]
[425859939,1782007849000,-500.0,0.00029589,2]
[425859891,1782007849000,-1112.0,0.00029589,2]
[425859896,1782007849000,-473.54946284,0.00029589,2]
[425859832,1782007849000,-761.02,0.00029589,2]
[425859841,1782007849000,-507.73415441,0.00029589,2]
[425859838,1782007849000,-500.0,0.00029589,2]
[425859845,1782007849000,-500.0,0.00029589,2]
[425859839,1782007849000,-197.72066805,0.00029589,2]
[425859859,1782007849000,-500.0,0.00029589,2]
[425859861,1782007849000,-500.0,0.00029589,2]
[425859847,1782007849000,-500.0,0.00029589,2]
[425859865,1782007849000,-908.54,0.00029589,2]
[425859851,1782007849000,-500.0,0.00029589,2]
[425859857,1782007849000,-500.0,0.00029589,2]
[425859849,1782007849000,-500.0,0.00029589,2]
[425859855,1782007849000,-500.0,0.00029589,2]
[425859836,1782007849000,-500.0,0.00029589,2]
[425859866,1782007849000,-500.0,0.00029589,2]
[425859853,1782007849000,-215.64608073,0.00029589,2]
[425859887,1782007849000,-500.0,0.00029589,2]
[425859874,1782007849000,-500.0,0.00029589,2]
[425859880,1782007849000,-500.0,0.00029589,2]
[425859889,1782007849000,-4093.73,0.00029589,2]
[425859895,1782007849000,-500.0,0.00029589,2]
[425859883,1782007849000,-500.0,0.00029589,2]
[425859893,1782007849000,-500.0,0.00029589,2]
[425859881,1782007849000,-500.0,0.00029589,2]
[425859878,1782007849000,-1633.51,0.00029589,2]
[425859876,1782007849000,-500.0,0.00029589,2]
[425859870,1782007849000,-500.0,0.00029589,2]
[425859868,1782007849000,-500.0,0.00029589,2]
[425859872,1782007849000,-733.33,0.00029589,2]
[425860038,1782007850000,-579.27865038,0.00029589,2]
[425860040,1782007850000,-836.42,0.00029589,2]
[425860027,1782007850000,-500.0,0.00029589,2]
[425860025,1782007850000,-500.0,0.00029589,2]
[425860029,1782007850000,-500.0,0.00029589,2]
[425860041,1782007850000,-500.0,0.00029589,2]
[425860023,1782007850000,-914.17,0.00029589,2]
[425860055,1782007850000,-500.0,0.00029589,2]
[425860035,1782007850000,-500.0,0.00029589,2]
[425860059,1782007850000,-500.0,0.00029589,2]
[425860057,1782007850000,-914.47,0.00029589,2]
[425860048,1782007850000,-500.0,0.00029589,2]
[425860061,1782007850000,-931.14,0.00029589,2]
[425860046,1782007850000,-500.0,0.00029589,2]
[425860044,1782007850000,-500.0,0.00029589,2]
[425860050,1782007850000,-500.0,0.00029589,2]
[425860065,1782007850000,-153.59412287,0.00029589,2]
[425860053,1782007850000,-500.0,0.00029589,2]
[425860051,1782007850000,-699.44,0.00029589,2]
[425860033,1782007850000,-634.15,0.00029589,2]
[425860067,1782007850000,-500.0,0.00029589,2]
[425860063,1782007850000,-500.0,0.00029589,2]
[425860031,1782007850000,-221.60465348,0.00029589,2]
[425859981,1782007850000,-567.57,0.00029589,2]
[425860019,1782007850000,-1579.85,0.00029589,2]
[425860081,1782007850000,-500.0,0.00029589,2]
[425859955,1782007850000,-500.0,0.00029589,2]
[425859986,1782007850000,-500.0,0.00029589,2]
[425859988,1782007850000,-500.0,0.00029589,2]
[425859990,1782007850000,-505.56948419,0.00029589,2]
[425859992,1782007850000,-500.0,0.00029589,2]
[425859977,1782007850000,-488.63258247,0.00029589,2]
[425859994,1782007850000,-500.0,0.00029589,2]
[425859983,1782007850000,-500.0,0.00029589,2]
[425859979,1782007850000,-543.95742479,0.00029589,2]
[425859996,1782007850000,-613.62,0.00029589,2]
[425859998,1782007850000,-237.09400918,0.00029589,2]
[425860007,1782007850000,-191.53811293,0.00029589,2]
[425860002,1782007850000,-500.0,0.00029589,2]
[425860000,1782007850000,-1060.64,0.00029589,2]
[425860009,1782007850000,-158.22937543,0.00029589,2]
[425860011,1782007850000,-5640.03,0.00029589,2]
[425860005,1782007850000,-623.03,0.00029589,2]
[425860013,1782007850000,-600.11,0.00029589,2]
[425860015,1782007850000,-500.0,0.00029589,2]
[425860017,1782007850000,-500.0,0.00029589,2]
[425860021,1782007850000,-500.0,0.00029589,2]
[425860087,1782007850000,-500.0,0.00029589,2]
[425860089,1782007850000,-500.0,0.00029589,2]
[425860086,1782007850000,-609.27443018,0.00029589,2]
[425860130,1782007850000,-500.0,0.00029589,2]
[425860124,1782007850000,-500.0,0.00029589,2]
[425860123,1782007850000,-816.82,0.00029589,2]
[425860128,1782007850000,-500.0,0.00029589,2]
[425860119,1782007850000,-1557.77,0.00029589,2]
[425860121,1782007850000,-500.0,0.00029589,2]
[425860126,1782007850000,-515.07921451,0.00029589,2]
[425860133,1782007850000,-500.0,0.00029589,2]
[425860135,1782007850000,-500.0,0.00029589,2]
[425860137,1782007850000,-500.0,0.00029589,2]
[425860146,1782007850000,-650.59,0.00029589,2]
[425860144,1782007850000,-500.0,0.00029589,2]
[425860142,1782007850000,-500.0,0.00029589,2]
[425860151,1782007850000,-500.0,0.00029589,2]
[425860147,1782007850000,-533.9,0.00029589,2]
[425860138,1782007850000,-591.38,0.00029589,2]
[425860149,1782007850000,-940.56,0.00029589,2]
[425860154,1782007850000,-535.07064407,0.00029589,2]
[425860152,1782007850000,-500.0,0.00029589,2]
[425860156,1782007850000,-500.0,0.00029589,2]
[425860083,1782007850000,-1160.31,0.00029589,2]
[425860131,1782007850000,-500.0,0.00029589,2]
[425860116,1782007850000,-500.0,0.00029589,2]
[425860140,1782007850000,-525.83,0.00029589,2]
[425860114,1782007850000,-368.78016318,0.00029589,2]
[425860118,1782007850000,-500.0,0.00029589,2]
[425860085,1782007850000,-500.0,0.00029589,2]
[425860073,1782007850000,-500.0,0.00029589,2]
[425860071,1782007850000,-500.0,0.00029589,2]
[425860069,1782007850000,-1102.42,0.00029589,2]
[425860091,1782007850000,-500.0,0.00029589,2]
[425860079,1782007850000,-500.0,0.00029589,2]
[425860077,1782007850000,-584.37,0.00029589,2]
[425860094,1782007850000,-500.0,0.00029589,2]
[425860092,1782007850000,-500.0,0.00029589,2]
[425860075,1782007850000,-500.0,0.00029589,2]
[425860109,1782007850000,-500.0,0.00029589,2]
[425860096,1782007850000,-1041.43,0.00029589,2]
[425860102,1782007850000,-500.0,0.00029589,2]
[425860101,1782007850000,-500.0,0.00029589,2]
[425860099,1782007850000,-607.98,0.00029589,2]
[425860104,1782007850000,-500.0,0.00029589,2]
[425860107,1782007850000,-500.0,0.00029589,2]
[425860113,1782007850000,-829.95,0.00029589,2]
[425860105,1782007850000,-500.0,0.00029589,2]
[425860111,1782007850000,-500.0,0.00029589,2]
[425860097,1782007850000,-1619.48,0.00029589,2]
[425860236,1782007851000,-500.0,0.00029589,2]
[425860210,1782007851000,-500.0,0.00029589,2]
[425860218,1782007851000,-500.0,0.00029589,2]
[425860220,1782007851000,-500.0,0.00029589,2]
[425860226,1782007851000,-500.0,0.00029589,2]
[425860208,1782007851000,-1077.41,0.00029589,2]
[425860201,1782007851000,-500.0,0.00029589,2]
[425860204,1782007851000,-500.0,0.00029589,2]
[425860206,1782007851000,-500.0,0.00029589,2]
[425860214,1782007851000,-500.0,0.00029589,2]
[425860216,1782007851000,-500.0,0.00029589,2]
[425860212,1782007851000,-504.98885985,0.00029589,2]
[425860224,1782007851000,-500.0,0.00029589,2]
[425860249,1782007851000,-500.0,0.00029589,2]
[425860228,1782007851000,-6322.01,0.00029589,2]
[425860234,1782007851000,-500.0,0.00029589,2]
[425860231,1782007851000,-607.52,0.00029589,2]
[425860237,1782007851000,-500.0,0.00029589,2]
[425860222,1782007851000,-684.57,0.00029589,2]
[425860241,1782007851000,-500.0,0.00029589,2]
[425860243,1782007851000,-488.83927429,0.00029589,2]
[425860261,1782007851000,-3337.49,0.00029589,2]
[425860247,1782007851000,-633.0,0.00029589,2]
[425860245,1782007851000,-17033.73,0.00029589,2]
[425860259,1782007851000,-500.0,0.00029589,2]
[425860197,1782007851000,-5678.29,0.00029589,2]
[425860230,1782007851000,-643.85,0.00029589,2]
[425860195,1782007851000,-500.0,0.00029589,2]
[425860167,1782007851000,-868.77,0.00029589,2]
[425860193,1782007851000,-500.0,0.00029589,2]
[425860253,1782007851000,-500.0,0.00029589,2]
[425860159,1782007851000,-500.0,0.00029589,2]
[425860161,1782007851000,-500.0,0.00029589,2]
[425860163,1782007851000,-500.0,0.00029589,2]
[425860166,1782007851000,-500.0,0.00029589,2]
[425860158,1782007851000,-500.0,0.00029589,2]
[425860164,1782007851000,-500.0,0.00029589,2]
[425860171,1782007851000,-500.0,0.00029589,2]
[425860173,1782007851000,-500.0,0.00029589,2]
[425860170,1782007851000,-512.72431247,0.00029589,2]
[425860172,1782007851000,-500.0,0.00029589,2]
[425860169,1782007851000,-500.0,0.00029589,2]
[425860199,1782007851000,-500.0,0.00029589,2]